bitfinex-derivatives/quotes_ETHF0:USTF0_20251116
["timestamp","ask_amount","ask_price","bid_price","bid_amount"]
[1763259637356,0.9294,3168.5,3168.4,3.2078]
[1763259637555,3.7595,3169.0,3168.4,4.1294]
[1763259638272,3.7595,3169.0,3168.4,4.1367863]
[1763259638469,3.7595,3169.0,3168.5,0.4954]
[1763259638967,4.1372,3169.4,3169.3,0.9216]
[1763259639158,3.2078,3169.4,3169.3,0.9216]
[1763259639765,4.1372,3169.4,3168.7,0.83865359]
[1763259639967,0.9294,3168.8,3168.7,1.76025359]
[1763259640373,3.2078,3169.4,3168.7,1.76025359]
[1763259640668,0.9294,3168.8,3168.7,1.76025359]
[1763259641773,3.2078,3169.4,3168.7,1.76025359]
[1763259642369,3.2078,3169.4,3168.7,0.9216]
[1763259643675,3.2078,3169.4,3168.8,0.7691636]
[1763259643866,0.9294,3169.0,3168.9,0.7691636]
[1763259645775,1.4811,3169.0,3168.9,0.7691636]
[1763259646272,0.9294,3168.7,3168.6,0.9216]
[1763259646468,0.9294,3168.7,3168.6,1.69070383]
[1763259646674,0.5517,3169.0,3168.6,1.69070383]
[1763259646882,0.5517,3169.0,3168.7,0.76910383]
[1763259647067,0.5517,3169.0,3168.5,0.4954]
[1763259647271,0.5517,3169.0,3168.6,0.76915842]
[1763259647470,0.5517,3169.0,3168.5,0.4954]
[1763259647674,0.9294,3168.7,3168.6,0.76903939]
[1763259648371,0.9294,3168.5,3168.4,4.1367863]
[1763259648571,0.9294,3168.5,3168.4,4.90600925]
[1763259649074,0.5517,3169.0,3168.4,4.90600925]
[1763259649274,0.5517,3169.0,3168.5,0.76922295]
[1763259649579,0.5517,3169.0,3168.4,3.2151863]
[1763259649777,0.5517,3169.0,3168.5,0.76942279]
[1763259650078,0.5517,3169.0,3168.4,3.2151863]
[1763259651471,3.846,3169.3,3168.9,0.9216]
[1763259651875,0.9294,3169.0,3168.9,0.9216]
[1763259652076,1.4811,3169.0,3168.5,0.4954]
[1763259653876,1.4811,3169.0,3168.4,3.2151863]
[1763259654064,0.5517,3169.0,3168.4,4.1367863]
[1763259654266,1.4811,3168.5,3168.4,3.2151863]
[1763259654472,1.4811,3168.5,3168.4,3.98399347]
[1763259654981,1.4811,3168.5,3168.4,3.2151863]
[1763259655277,3.2078,3168.9,3168.4,4.1367863]
[1763259656075,0.5517,3169.0,3168.4,4.1367863]
[1763259656374,0.5517,3169.0,3168.5,0.4954]
[1763259656575,0.9294,3169.0,3168.9,0.9216]
[1763259657181,7.9832,3169.3,3169.2,0.9216]
[1763259657379,7.0538,3169.3,3169.0,0.9216]
[1763259657583,7.9832,3169.3,3169.2,0.9216]
[1763259658276,7.9832,3169.3,3168.9,3.2078]
[1763259658474,7.9173,3169.3,3169.2,0.8002]
[1763259659781,0.8635,3169.3,3169.2,0.8002]
[1763259660481,0.8635,3169.3,3168.6,0.83489049]
[1763259660482,0.8635,3168.7,3168.6,0.83489049]
[1763259660782,0.8635,3168.6,3168.5,0.8002]
[1763259661082,0.4794,3169.0,3168.5,1.57048406]
[1763259661285,0.4794,3169.0,3168.6,0.77028406]
[1763259661477,0.8635,3168.7,3168.6,0.8002]
[1763259661677,0.8635,3168.7,3168.6,1.57101036]
[1763259662985,0.4794,3169.0,3168.6,1.57101036]
[1763259663283,0.4794,3169.0,3168.7,0.77081036]
[1763259663485,0.8635,3168.9,3168.8,1.57101036]
[1763259664185,0.8635,3168.9,3168.8,0.77081036]
[1763259664788,0.8635,3168.9,3168.8,1.57101036]
[1763259665282,0.8635,3168.9,3168.8,0.77081036]
[1763259665588,0.8635,3168.9,3168.8,1.57101036]
[1763259668393,0.8635,3168.9,3168.8,0.77081036]
[1763259671096,0.8635,3168.9,3168.8,1.57101036]
[1763259673791,0.8635,3168.9,3168.8,0.77081036]
[1763259674693,0.8635,3168.9,3168.8,1.54801036]
[1763259676394,0.8198,3169.0,3168.9,0.7772]
[1763259676591,0.8198,3169.0,3168.9,1.54801036]
[1763259676891,1.2875,3169.0,3168.9,0.66336036]
[1763259677195,0.8198,3167.9,3167.8,0.7772]
[1763259677494,4.0,3168.7,3168.6,0.7667]
[1763259677689,0.7922,3168.6,3168.1,3.2078]
[1763259677992,0.7922,3168.2,3167.8,1.67007156]
[1763259678194,0.7922,3168.2,3168.1,0.00360229]
[1763259678788,0.7922,3168.2,3168.1,0.77030229]
[1763259678989,13.41596932,3168.6,3168.5,0.7667]
[1763259679893,0.7922,3168.2,3168.1,0.00360229]
[1763259680697,0.7922,3168.2,3167.2,3.9745]
[1763259680698,0.7922,3167.3,3167.2,3.9745]
[1763259680903,15.488,3167.7,3167.2,3.9745]
[1763259681102,16.2802,3167.7,3167.2,3.2078]
[1763259681794,0.7922,3167.7,3167.2,3.2117285]
[1763259681990,3.2078,3167.8,3167.6,0.7667]
[1763259682296,3.21156932,3168.6,3168.5,0.7667]
[1763259682505,4.00376932,3168.6,3168.5,0.7667]
[1763259682798,3.21156932,3168.6,3168.5,1.2576]
[1763259685493,0.00376932,3168.6,3168.5,1.2576]
[1763259689202,0.00376932,3168.6,3168.5,1.2155]
[1763259698513,0.78996932,3168.6,3168.5,0.7545]
[1763259698708,0.00376932,3168.6,3168.5,1.2155]
[1763259700417,1.1352241,3169.6,3169.5,1.2155]
[1763259700714,3.2078,3170.2,3170.1,0.7545]
[1763259701216,3.2078,3170.7,3170.6,0.7545]
[1763259701524,3.99701743,3170.7,3170.6,0.003255]
[1763259702220,3.99701743,3170.7,3170.6,0.757755]
[1763259702407,3.99701743,3170.7,3170.6,0.003255]
[1763259702611,3.21081743,3170.7,3170.6,0.757755]
[1763259704023,3.99701743,3170.7,3170.6,0.757755]
[1763259704319,3.99701743,3170.7,3170.6,0.003255]
[1763259705224,3.99701743,3170.7,3170.6,0.757755]
[1763259707124,3.99701743,3170.7,3170.6,0.003255]
[1763259710828,9.99701743,3170.7,3170.6,0.003255]
[1763259712923,3.99701743,3170.7,3170.6,0.757755]
[1763259713229,3.99701743,3170.7,3170.6,0.003255]
[1763259718430,0.7383,3170.4,3170.3,0.00473171]
[1763259718632,3.94911743,3170.7,3170.6,0.724]
[1763259719531,3.94911743,3170.7,3170.6,0.72691526]
[1763259720033,3.94911743,3170.7,3170.6,0.00291526]
[1763259720728,0.74131743,3170.7,3170.6,0.72691526]
[1763259720934,0.00301743,3170.7,3170.6,0.72691526]
[1763259721336,0.74131743,3170.7,3170.6,0.00291526]
[1763259722134,3.94911743,3170.7,3170.6,0.00291526]
[1763259723532,0.7383,3168.8,3168.7,3.9318]
[1763259723728,0.4179,3169.5,3168.7,3.9318]
[1763259723729,3.6257,3169.5,3168.7,3.9318]
[1763259724035,0.7383,3168.8,3168.7,3.2078]
[1763259724536,0.7383,3168.8,3168.7,3.21050956]
[1763259725825,0.00473171,3169.1,3169.0,0.724]
[1763259726030,0.00473171,3169.1,3169.0,1.154]
[1763259730038,3.2078,3170.1,3170.0,0.724]
[1763259730343,3.9461,3170.1,3169.5,0.43]
[1763259731032,3.95083171,3170.1,3169.5,0.43]
[1763259733049,3.95083171,3170.1,3170.0,0.724]
[1763259733344,3.95083171,3170.1,3170.0,1.154]
[1763259733345,3.21253171,3170.1,3170.0,1.154]
[1763259733545,3.95083171,3170.1,3170.0,1.154]
[1763259733745,3.95083171,3170.1,3169.5,0.43]
[1763259734339,3.95083171,3170.1,3169.3,3.2078]
[1763259734340,0.7186,3169.6,3169.3,3.2078]
[1763259734544,0.7186,3169.6,3169.5,0.7147]
[1763259734949,0.7186,3169.4,3169.3,3.9225]
[1763259735245,0.1779,3170.0,3169.3,3.9225]
[1763259736046,0.7186,3169.4,3169.3,3.9225]
[1763259736941,0.7186,3169.4,3169.3,3.2078]
[1763259737638,0.7186,3169.4,3169.0,0.43]
[1763259737839,0.7186,3169.0,3168.9,3.2078]
[1763259738148,1.1091,3169.0,3168.9,3.2078]
[1763259738950,0.7186,3168.8,3168.7,0.00270956]
[1763259750550,16.1906,3168.8,3168.7,0.00270956]
[1763259751061,16.1906,3168.8,3168.7,9.56e-06]
[1763259751355,16.1906,3168.8,3167.5,1.5245977]
[1763259751356,0.6771,3167.6,3167.5,3.8435]
[1763259751546,0.6771,3167.6,3167.5,3.2078]
[1763259752152,0.67963658,3167.6,3167.5,3.21095749]
[1763259752552,0.67963658,3167.6,3167.5,3.84665749]
[1763259755063,0.00253658,3167.6,3167.5,4.23165749]
[1763259755361,0.67963658,3167.6,3167.5,4.23165749]
[1763259756762,0.67963658,3167.6,3167.5,3.84665749]
[1763259758063,0.67963658,3167.6,3167.5,4.23165749]
[1763259761256,0.67963658,3167.6,3167.5,3.84665749]
[1763259761458,0.67963658,3167.6,3167.5,4.23165749]
[1763259761762,0.00253658,3167.6,3167.5,4.23165749]
[1763259762166,0.67963658,3167.6,3167.5,4.23165749]
[1763259763057,0.6771,3168.6,3168.5,0.6357]
[1763259763259,0.6771,3168.6,3168.5,1.0207]
[1763259763958,0.67964228,3168.6,3168.5,1.0207]
[1763259764662,0.67964228,3168.6,3168.5,0.6357]
[1763259765565,0.67964228,3168.6,3168.5,1.0207]
[1763259765759,0.67964228,3168.6,3168.5,0.6357]
[1763259766859,0.6771,3168.4,3168.3,3.8435]
[1763259767165,0.67964228,3168.6,3168.5,0.6357]
[1763259768057,16.14964228,3168.6,3168.5,0.6357]
[1763259768565,0.6771,3168.4,3168.3,3.2078]
[1763259769862,0.6771,3168.4,3168.3,0.6357]
[1763259770064,0.6771,3168.1,3168.0,4.2285]
[1763259771667,0.1803,3168.5,3168.0,4.2285]
[1763259771859,0.8574,3168.5,3168.0,3.5928]
[1763259773364,0.6771,3168.5,3168.4,0.6357]
[1763259778271,0.00254228,3168.6,3168.5,0.9608]
[1763259778470,15.46854228,3168.6,3168.5,0.9608]
[1763259778868,16.06034228,3168.6,3168.5,0.9608]
[1763259779066,16.06034228,3168.6,3168.0,3.5928]
[1763259780574,0.3524,3168.5,3168.0,3.5928]
[1763259780774,0.5918,3168.5,3168.4,0.5985]
[1763259781365,0.00254228,3168.6,3168.5,0.9608]
[1763259782065,0.00473171,3168.9,3168.8,0.5985]
[1763259783077,0.007875,3168.9,3168.8,0.5985]
[1763259784473,3.2078,3169.6,3169.5,0.9608]
[1763259785171,15.463,3169.9,3169.8,0.5985]
[1763259785571,15.46593938,3169.9,3169.8,0.60162449]
[1763259786473,15.46593938,3169.9,3169.2,3.2078]
[1763259786474,0.5918,3169.3,3169.2,3.2078]
[1763259786870,0.5918,3169.4,3169.3,0.5985]
[1763259787070,15.461,3169.4,3169.3,0.5985]
[1763259787266,0.5918,3169.3,3169.2,3.2078]
[1763259787479,0.5918,3168.8,3168.7,3.8063]
[1763259787675,0.5918,3168.8,3168.7,0.60156559]
[1763259788072,0.5918,3168.8,3168.7,0.00306559]
[1763259788468,0.5918,3168.8,3168.7,0.60156559]
[1763259788675,15.461,3168.9,3168.8,0.5985]
[1763259789070,3.2078,3169.2,3169.1,0.5985]
[1763259789379,8.294,3169.3,3169.2,0.5985]
[1763259789675,3.2078,3169.6,3169.0,0.3623]
[1763259789676,8.294,3169.4,3169.3,0.5985]
[1763259789876,8.8858,3169.4,3169.3,0.5985]
[1763259790469,0.5918,3168.9,3168.8,3.2078]
[1763259790674,0.5918,3168.8,3168.7,0.00306559]
[1763259790977,3.7996,3168.8,3168.7,0.00306559]
[1763259791181,0.9411,3168.5,3167.5,3.5701]
[1763259791477,0.5918,3167.6,3167.5,4.1686]
[1763259791680,0.5918,3167.6,3167.5,3.2078]
[1763259791877,3.2078,3168.0,3167.9,0.5985]
[1763259792078,19.2605373,3168.0,3167.9,0.00330403]
[1763259792280,19.4070373,3168.0,3167.9,0.00330403]
[1763259794681,3.9490373,3168.0,3167.9,0.00330403]
[1763259794882,25.3439373,3168.0,3167.9,4.03e-06]
[1763259795077,0.5333,3167.7,3167.6,0.00473171]
[1763259795279,0.5333,3166.7,3166.6,0.575]
[1763259795678,9.183,3166.9,3166.8,0.575]
[1763259795885,9.7163,3166.9,3166.5,0.3623]
[1763259796088,0.5333,3166.6,3166.5,0.0032627]
[1763259796272,0.5333,3166.6,3166.5,0.5782627]
[1763259796687,0.5333,3166.6,3166.5,0.0032627]
[1763259798081,3.2078,3166.9,3166.8,0.575]
[1763259798275,8.515,3167.2,3166.8,0.575]
[1763259798471,14.067,3167.1,3167.0,0.9298]
[1763259799080,14.067,3167.1,3167.0,0.575]
[1763259799283,14.6003,3167.1,3166.5,3.5658627]
[1763259800482,0.3236,3167.0,3166.5,3.5658627]
[1763259801288,14.067,3167.1,3166.5,3.5658627]
[1763259801585,15.46,3167.1,3167.0,0.575]
[1763259802579,0.5333,3167.1,3167.0,0.575]
[1763259802786,0.5333,3167.1,3166.5,3.5658627]
[1763259803186,0.3236,3167.0,3166.5,3.5658627]
[1763259803385,3.2078,3167.4,3167.3,0.575]
[1763259803790,3.2078,3167.8,3167.3,0.575]
[1763259804082,3.2078,3167.8,3167.7,0.575]
[1763259805183,3.7411,3167.8,3167.7,0.575]
[1763259806093,1.4525231,3169.0,3167.8,6.0]
[1763259806279,0.3236,3169.0,3168.9,3.2078]
[1763259806486,0.3236,3169.5,3168.9,3.2078]
[1763259806681,0.3236,3169.0,3168.9,3.2078]
[1763259807078,0.32766426,3169.0,3168.9,3.21102093]
[1763259807279,0.00406426,3169.0,3168.9,3.21102093]
[1763259807691,0.32766426,3169.0,3168.9,3.21102093]
[1763259808582,0.00406426,3169.0,3168.9,3.21102093]
[1763259809287,0.35856426,3169.0,3168.9,3.21102093]
[1763259810585,0.93856426,3169.0,3168.9,3.21102093]
[1763259813388,0.00406426,3169.0,3168.9,3.21102093]
[1763259813688,0.00473171,3169.3,3168.9,3.21102093]
[1763259814083,0.3236,3170.0,3168.9,3.21102093]
[1763259814286,0.3236,3170.0,3169.5,3.2078]
[1763259814682,0.32766742,3170.0,3169.9,3.2078]
[1763259816487,0.90766742,3170.0,3169.9,3.2078]
[1763259816699,0.90766742,3170.0,3169.5,3.2078]
[1763259817392,0.90766742,3170.0,3169.9,3.2078]
[1763259820992,0.90766742,3170.0,3169.5,3.2078]
[1763259821193,0.58,3169.6,3169.5,3.2078]
[1763259825798,0.9345,3169.0,3168.9,3.21102093]
[1763259826197,0.3545,3169.5,3168.9,3.80332093]
[1763259828300,0.9345,3169.0,3168.9,3.80332093]
[1763259828503,4.1423,3169.0,3168.9,0.00322093]
[1763259833403,0.9345,3168.5,3168.4,3.2078]
[1763259834499,0.9345,3168.5,3168.4,3.21114263]
[1763259839205,0.9345,3168.5,3168.4,3.80344263]
[1763259839509,0.3545,3168.5,3168.4,3.80344263]
[1763259839907,4.1217,3169.0,3168.9,0.552]
[1763259840113,19.5667,3169.0,3168.9,0.552]
[1763259840306,19.5667,3169.0,3168.4,3.21114263]
[1763259841912,0.8913,3168.5,3168.4,3.76314263]
[1763259842115,0.8913,3168.5,3168.4,0.00334263]
[1763259842412,6.8913,3168.5,3168.4,0.00334263]
[1763259842601,0.5594,3167.6,3167.5,3.2078]
[1763259842806,0.5594,3167.6,3167.5,3.7598]
[1763259843003,0.5594,3167.6,3167.5,3.2078]
[1763259843316,0.3319,3167.5,3167.1,3.2078]
[1763259843516,0.3319,3167.5,3167.1,3.21186119]
[1763259843517,0.33573936,3167.5,3167.1,3.21186119]
[1763259844416,0.33573936,3167.5,3167.4,0.552]
[1763259845011,0.89513936,3167.5,3167.4,0.552]
[1763259845213,0.89513936,3167.5,3167.1,3.21186119]
[1763259845727,0.5594,3167.2,3167.1,3.21186119]
[1763259846415,0.5594,3167.2,3167.1,3.76386119]
[1763259846617,0.33573936,3167.5,3167.1,3.76386119]
[1763259846914,0.33573936,3167.5,3167.4,0.552]
[1763259847320,3.2078,3168.6,3168.5,0.552]
[1763259847617,3.7672,3168.6,3168.5,0.552]
[1763259847917,3.7672,3168.6,3167.9,3.2078]
[1763259847918,0.3319,3168.5,3167.9,3.2078]
[1763259848311,0.33949215,3168.5,3167.9,3.21253171]
[1763259848919,0.3319,3168.0,3167.9,3.76453171]
[1763259850314,0.8913,3168.0,3167.9,3.76453171]
[1763259850618,0.8913,3168.0,3167.9,3.21253171]
[1763259851221,0.8913,3168.0,3167.9,0.00473171]
[1763259854813,9.9843,3168.0,3167.9,0.00473171]
[1763259856218,3.2078,3168.2,3168.1,0.5569]
[1763259856616,3.7449,3168.2,3168.1,0.5569]
[1763259857011,0.5371,3168.2,3168.1,0.5569]
[1763259858125,0.3269,3168.0,3167.9,0.56163171]
[1763259858322,0.864,3168.0,3167.9,0.56163171]
[1763259860025,15.444,3168.3,3167.9,0.56163171]
[1763259860725,0.00759215,3168.5,3168.4,0.5569]
[1763259860919,0.87159215,3168.5,3168.0,0.837584]
[1763259861425,16.31459215,3168.5,3168.0,0.837584]
[1763259861827,16.31459215,3168.5,3167.9,4.05011571]
[1763259862324,16.31459215,3168.5,3168.0,0.837584]
[1763259866526,16.31459215,3168.5,3168.4,0.5569]
[1763259866718,15.77749215,3168.5,3168.4,0.5569]
[1763259867326,16.31459215,3168.5,3168.4,0.5569]
[1763259867527,16.31259215,3168.5,3168.4,0.5569]
[1763259868529,0.87159215,3168.5,3168.4,0.5569]
[1763259868825,16.31259215,3168.5,3168.4,0.5569]
[1763259869427,16.31259215,3168.5,3168.0,0.837584]
[1763259869625,0.5143,3168.1,3168.0,0.837584]
[1763259870227,0.8363,3168.0,3167.9,3.171e-05]
[1763259870428,16.2763,3168.0,3167.9,3.171e-05]
[1763259871230,22.2763,3168.0,3167.9,3.171e-05]
[1763259871639,23.4052231,3168.0,3167.9,3.171e-05]
[1763259872232,22.2763,3168.0,3167.9,3.171e-05]
[1763259873334,23.4052231,3168.0,3167.9,3.171e-05]
[1763259874231,0.5143,3167.2,3167.1,0.00406119]
[1763259874431,15.9543,3167.2,3167.1,0.00406119]
[1763259876238,0.5143,3167.2,3167.1,0.00406119]
[1763259876538,3.2078,3167.4,3167.3,0.5385]
[1763259876733,11.9828,3167.4,3167.3,0.5385]
[1763259876930,15.44,3167.5,3167.4,0.5385]
[1763259878736,15.44,3167.5,3167.1,3.21186119]
[1763259878737,3.2078,3167.8,3167.7,0.5385]
[1763259881245,3.7221,3167.8,3167.1,4.04944519]
[1763259881732,3.7221,3167.8,3167.7,0.5385]
[1763259881935,3.2078,3167.8,3167.7,0.5385]
[1763259886348,3.2078,3168.3,3167.7,3.7463]
[1763259886549,3.2078,3168.3,3168.2,0.5385]
[1763259886750,3.7221,3168.3,3168.2,0.5385]
[1763259886953,3.7221,3168.3,3167.7,3.2078]
[1763259887351,0.322,3168.0,3167.7,3.2078]
[1763259887553,0.5143,3167.8,3167.7,3.2078]
[1763259891766,0.5143,3167.8,3167.3,0.83413472]
[1763259892558,0.5143,3167.8,3167.2,3.2078]
[1763259893461,0.5143,3167.8,3167.7,0.5385]
[1763259893865,0.5143,3167.8,3167.2,3.2078]
[1763259893866,3.7221,3168.3,3168.2,0.5385]
[1763259894159,0.5143,3167.6,3167.5,0.83413472]
[1763259894364,0.322,3168.0,3167.5,0.5385]
[1763259894550,0.5143,3167.6,3167.5,0.5385]
[1763259896755,0.322,3168.0,3167.5,0.5385]
[1763259897563,0.5143,3167.6,3167.5,0.5385]
[1763259897865,0.322,3168.0,3167.5,0.5385]
[1763259899167,0.5143,3167.6,3167.5,0.5385]
[1763259900661,0.4529,3167.3,3167.2,4.04199712]
[1763259900858,0.7322,3166.5,3166.4,4.04199712]
[1763259901064,0.45763171,3166.8,3166.7,0.4578]
[1763259901263,0.00473171,3166.8,3166.7,0.4578]
[1763259901568,0.45763171,3166.8,3166.7,0.4578]
[1763259902069,0.45763171,3166.8,3166.7,0.4616825]
[1763259902263,0.00473171,3166.8,3166.7,0.4616825]
[1763259902657,0.45763171,3166.8,3166.7,0.4616825]
[1763259903562,0.00473171,3166.8,3166.7,0.4616825]
[1763259908869,0.45763171,3166.8,3166.7,0.4616825]
[1763259909076,0.45763171,3166.8,3166.7,0.0038825]
[1763259911166,0.4529,3166.1,3166.0,4.04327601]
[1763259911373,0.4529,3166.1,3166.0,3.6656]
[1763259912369,0.00376286,3166.1,3166.0,3.6678182]
[1763259912573,0.45666286,3166.1,3166.0,3.6678182]
[1763259912967,0.45666286,3166.1,3166.0,3.2100182]
[1763259913787,0.00473171,3166.8,3166.0,3.2100182]
[1763259913788,0.00473171,3166.8,3166.4,0.3856]
[1763259914072,0.2609,3167.0,3166.9,0.3856]
[1763259914271,0.7182,3167.0,3166.4,3.2078]
[1763259914872,0.72675089,3167.0,3166.4,3.21253171]
[1763259915275,0.7182,3166.5,3166.4,3.59813171]
[1763259915580,0.2609,3166.5,3166.4,3.59813171]
[1763259915779,3.2078,3166.9,3166.4,3.59813171]
[1763259916170,0.2609,3166.5,3166.4,3.59813171]
[1763259916372,0.7182,3166.5,3166.4,3.21253171]
[1763259916779,0.7182,3166.5,3166.4,3.59813171]
[1763259917169,0.7182,3166.5,3166.4,3.21253171]
[1763259919479,0.2609,3166.5,3166.4,3.59813171]
[1763259919978,0.00855089,3167.0,3166.9,0.3856]
[1763259922486,0.322,3168.0,3167.4,0.3856]
[1763259923374,0.28339889,3167.5,3167.4,0.3856]
[1763259923775,0.74069889,3167.5,3167.4,0.3856]
[1763259925280,0.28339889,3167.5,3167.4,0.3856]
[1763259925482,0.00409889,3167.5,3167.4,0.3856]
[1763259926985,0.00473171,3167.8,3167.7,0.3815]
[1763259927182,0.00473171,3167.8,3167.7,3.5893]
[1763259927989,0.00859879,3167.8,3167.7,3.5893]
[1763259930488,0.44049879,3167.8,3167.7,3.2078]
[1763259931387,0.4319,3167.4,3167.3,3.2078]
[1763259932090,0.4319,3167.4,3167.3,3.5192]
[1763259932495,0.00859879,3167.8,3167.7,0.3114]
[1763259932696,0.2526,3167.5,3167.3,3.2078]
[1763259932996,0.4319,3167.4,3167.3,3.2078]
[1763259934695,0.4319,3167.4,3167.3,3.5192]
[1763259935195,0.2526,3167.5,3167.4,0.3114]
[1763259938098,0.4319,3167.4,3167.0,0.83547601]
[1763259938495,0.4319,3167.4,3167.3,0.3114]
[1763259938796,0.00859879,3167.8,3167.7,0.3114]
[1763259938994,3.4687,3168.5,3168.4,0.3114]
[1763259939195,3.9006,3168.5,3168.4,0.3114]
[1763259939896,3.90462052,3168.5,3168.4,0.00269188]
[1763259940889,0.69682052,3168.5,3168.4,0.00269188]
[1763259942793,0.26492052,3168.5,3168.4,0.31409188]
[1763259942996,0.69682052,3168.5,3168.4,0.31409188]
[1763259943399,0.69682052,3168.5,3168.4,0.00269188]
[1763259946401,0.69682052,3168.5,3168.4,0.31409188]
[1763259948091,0.69682052,3168.5,3168.4,0.00269188]
[1763259948699,0.69682052,3168.5,3168.4,0.31409188]
[1763259950406,0.69682052,3168.5,3168.4,0.00269188]
[1763259954408,0.4319,3168.2,3168.1,3.21253171]
[1763259955309,0.4319,3168.2,3168.1,3.21571865]
[1763259956509,0.4319,3168.2,3168.1,0.00791865]
[1763259957909,0.4319,3168.2,3168.1,0.32201865]
[1763259958114,0.4319,3168.2,3168.1,0.00791865]
[1763259962008,0.4157,3167.7,3167.6,3.2078]
[1763259963015,0.4157,3167.7,3167.6,3.21165138]
[1763259963411,0.4157,3167.7,3167.3,0.84020772]
[1763259963715,0.4157,3167.4,3167.3,0.00473171]
[1763259964616,0.4157,3167.4,3167.3,0.00715615]
[1763259971825,0.2351,3167.5,3167.3,0.21825615]
[1763259972027,0.2351,3167.5,3167.4,0.2111]
[1763259972939,0.6508,3167.5,3167.4,0.2111]
[1763259974932,0.2351,3167.5,3167.4,0.2111]
[1763259975428,0.6177,3167.5,3167.4,0.2111]
[1763259976523,0.2351,3167.5,3167.4,0.2111]
[1763259976929,0.6177,3167.5,3167.4,0.2111]
[1763259979926,0.2351,3167.5,3167.4,0.2111]
[1763259980127,0.6177,3167.5,3167.4,0.2111]
[1763259980531,0.3826,3167.4,3167.3,0.00715615]
[1763259981838,0.3826,3166.4,3166.3,0.83547601]
[1763259982035,0.3826,3166.3,3166.2,3.2078]
[1763259982838,0.3826,3166.3,3166.2,3.21035658]
[1763259986333,16.0088,3166.5,3166.4,0.1546]
[1763259986538,0.5978,3166.5,3166.4,0.1546]
[1763259987339,0.3826,3166.3,3166.2,3.21035658]
[1763259988326,0.3826,3166.3,3166.2,3.36495658]
[1763259989139,0.3826,3166.3,3166.2,3.21035658]
[1763259990540,0.3826,3166.3,3166.2,3.33645658]
[1763259994141,0.2152,3166.5,3166.2,3.33645658]
[1763259994537,0.3686,3166.3,3166.2,3.33645658]
[1763259995542,0.2152,3166.5,3166.4,0.1261]
[1763259996043,0.5838,3166.5,3166.4,0.1261]
[1763259996944,0.2152,3166.5,3166.4,0.1261]
[1763259997342,0.00473171,3166.6,3166.5,0.1261]
[1763260002745,3.5764,3167.4,3167.3,0.1214]
[1763260003446,3.2078,3167.4,3167.3,0.1214]
[1763260003643,3.5764,3167.4,3167.3,0.1214]
[1763260005544,3.5764,3167.4,3166.7,0.83933401]
[1763260008252,3.5764,3167.4,3166.8,0.83933401]
[1763260010649,3.5764,3167.4,3167.0,3.2078]
[1763260011044,3.5764,3167.4,3167.3,0.1214]
[1763260012053,0.00473171,3167.7,3167.6,0.1214]
[1763260014652,0.37333171,3167.7,3167.6,0.1214]
[1763260014847,0.00473171,3167.7,3167.6,0.1214]
[1763260015157,0.37333171,3167.7,3167.6,0.1214]
[1763260015350,0.00473171,3167.7,3167.6,0.1214]
[1763260016259,0.37333171,3167.7,3167.6,0.1214]
[1763260020544,0.00473171,3167.7,3167.6,0.1214]
[1763260022259,0.34473171,3167.7,3167.6,0.1214]
[1763260022854,0.00473171,3167.7,3167.6,0.1214]
[1763260023649,3.2078,3168.6,3168.4,0.008]
[1763260024350,3.4217,3169.0,3168.9,0.008]
[1763260024952,0.2139,3169.0,3168.9,0.008]
[1763260025351,0.21761601,3169.0,3168.9,0.01186886]
[1763260026857,0.55761601,3169.0,3168.9,0.00386886]
[1763260027163,0.34,3168.7,3168.6,3.21253171]
[1763260028166,0.34,3168.7,3168.6,3.2164243]
[1763260029170,0.34,3168.2,3168.1,3.2078]
[1763260030272,0.34,3168.2,3168.1,3.21116464]
[1763260032374,0.1983,3168.5,3168.1,3.21116464]
[1763260033266,3.2078,3168.7,3168.4,0.0205]
[1763260033563,0.21761601,3169.0,3168.1,4.04524776]
[1763260033564,0.1835,3168.5,3168.1,4.04524776]
[1763260035077,0.1835,3168.5,3168.2,0.83408312]
[1763260035969,0.21761601,3169.0,3168.2,0.83408312]
[1763260036164,0.21761601,3169.0,3168.9,3.2078]
[1763260037872,0.2067866,3169.0,3168.9,3.2078]
[1763260038477,0.00473171,3169.3,3168.9,3.2078]
[1763260038776,0.5109,3170.0,3169.2,0.83408312]
[1763260038977,0.1855,3169.5,3169.3,3.2078]
[1763260039578,0.18805128,3169.5,3169.3,3.2078]
[1763260040678,0.00473171,3169.7,3169.3,4.04188312]
[1763260040878,0.1983,3170.0,3169.6,1.1077977]
[1763260041177,0.1983,3170.0,3169.9,3.2078]
[1763260041766,1.253e-05,3170.0,3169.9,4.03977371]
[1763260041980,1.253e-05,3170.0,3169.9,3.2078]
[1763260042165,1.253e-05,3170.0,3169.9,4.03868117]
[1763260042372,3.2078,3170.9,3169.9,4.03868117]
[1763260042680,3.2078,3170.9,3170.4,3.2078]
[1763260043077,0.1855,3171.0,3170.4,3.2078]
[1763260043479,0.19262834,3171.0,3170.4,3.21169369]
[1763260043980,0.1855,3170.5,3170.4,3.21169369]
[1763260044978,3.2078,3171.7,3170.4,3.21169369]
[1763260045165,3.2078,3171.7,3170.9,3.2078]
[1763260045166,0.4981,3171.0,3170.9,3.2078]
[1763260045570,0.1855,3171.0,3170.9,3.2078]
[1763260045781,0.18936079,3171.0,3170.9,3.2078]
[1763260046279,0.50196079,3171.0,3170.9,3.2078]
[1763260046475,0.50196079,3171.0,3170.5,3.2078]
[1763260047171,0.50196079,3171.0,3170.4,0.00389369]
[1763260047172,0.1855,3170.5,3170.4,0.00389369]
[1763260047372,0.4981,3170.5,3170.4,0.00389369]
[1763260052884,0.1855,3170.5,3170.4,0.00389369]
[1763260053082,3.2078,3170.9,3170.4,0.00389369]
[1763260055986,0.1773,3170.5,3170.4,0.00389369]
[1763260057189,0.4843,3170.5,3170.4,0.00389369]
[1763260066078,0.4843,3170.5,3170.4,0.83737025]
[1763260066589,0.4843,3170.5,3170.1,3.2078]
[1763260066590,0.307,3170.2,3170.1,3.2078]
[1763260067189,0.307,3170.2,3170.1,4.3155977]